bitfinex-derivatives/quotes_ETHF0:USTF0_20250214
["timestamp","ask_amount","ask_price","bid_price","bid_amount"]
[1739553672012,3.2078,2736.2,2735.9,0.7309]
[1739553672222,3.2078,2736.5,2735.8,6.04487255]
[1739553672519,3.2078,2736.5,2736.1,3.56791255]
[1739553672723,40.8,2736.2,2736.1,3.56791255]
[1739553674018,40.8,2736.2,2736.1,3.86602882]
[1739553674212,40.8,2736.2,2736.1,2.83707255]
[1739553674419,40.8,2736.2,2736.1,0.73086]
[1739553674615,40.8,2736.2,2736.0,0.73086]
[1739553674921,40.8,2736.2,2736.1,0.73086]
[1739553677321,40.8,2736.2,2736.1,6.77573255]
[1739553679624,40.8,2736.2,2736.1,8.51173255]
[1739553679823,0.00548095,2736.6,2736.1,14.51173255]
[1739553680131,0.00548095,2736.6,2736.5,6.77562255]
[1739553680428,0.00548095,2736.6,2736.4,0.73075]
[1739553680722,0.00548095,2736.6,2736.5,0.73075]
[1739553680932,40.80548095,2736.6,2736.5,3.56782255]
[1739553681725,40.80548095,2736.6,2736.5,6.77562255]
[1739553682324,40.80548095,2736.6,2736.5,7.87032255]
[1739553683723,40.8,2736.6,2736.5,13.87032255]
[1739553683923,1.0817,2737.5,2736.6,1.82681]
[1739553684127,3.2078,2737.7,2737.3,0.73052]
[1739553684830,40.8,2737.4,2737.3,0.73054]
[1739553686642,40.8,2737.4,2737.3,3.93834]
[1739553687031,40.8,2737.4,2737.3,4.22691422]
[1739553688137,40.8,2737.4,2737.3,3.93834]
[1739553693941,0.00548095,2737.8,2737.7,0.73043]
[1739553694133,0.00548095,2737.8,2737.7,5.30150255]
[1739553694731,40.80548095,2737.8,2737.7,11.30150255]
[1739553694939,1.0968,2738.7,2737.8,1.82595]
[1739553695238,1.0968,2738.7,2738.6,2.83707255]
[1739553695239,1.82696,2738.7,2738.6,2.83707255]
[1739553695546,42.62696,2738.7,2738.6,2.83707255]
[1739553695734,41.8968,2738.7,2738.6,2.83707255]
[1739553696042,40.8,2738.7,2738.6,3.22936016]
[1739553696440,40.8,2738.7,2738.6,6.43716016]
[1739553696741,0.00548095,2738.9,2738.8,0.73014]
[1739553696937,0.00548095,2738.9,2738.8,3.40051743]
[1739553697540,0.00548095,2738.9,2738.8,2.67037743]
[1739553698245,0.00548095,2738.9,2738.8,3.40051743]
[1739553698437,40.8,2739.2,2738.8,3.14778618]
[1739553698649,40.8,2739.2,2739.1,2.83707255]
[1739553698852,40.8,2739.2,2739.1,3.77344998]
[1739553699048,40.85732441,2739.2,2739.1,4.25085873]
[1739553699352,40.8,2739.2,2739.1,3.70676891]
[1739553699552,40.8,2739.2,2739.1,0.86969636]
[1739553699857,40.8,2739.2,2739.1,1.4262987]
[1739553700450,40.8,2739.2,2739.1,2.1563587]
[1739553700653,40.8,2739.2,2739.1,1.4262987]
[1739553701154,0.00548095,2739.4,2739.1,1.4262987]
[1739553701354,0.00548095,2739.4,2739.2,0.94888995]
[1739553701551,0.00548095,2739.4,2739.3,2.68188995]
[1739553701754,40.80548095,2739.4,2739.3,3.1592987]
[1739553701953,40.80548095,2739.4,2739.3,3.15890296]
[1739553702356,40.80548095,2739.4,2739.3,3.15890842]
[1739553703652,40.80548095,2739.4,2739.3,1.42590842]
[1739553703855,41.53546095,2739.4,2739.3,1.03410391]
[1739553704059,41.53546095,2739.4,2739.3,1.42581944]
[1739553706149,44.3725335,2739.4,2739.3,0.82422428]
[1739553706351,44.3725335,2739.4,2738.9,0.00548095]
[1739553706352,0.73008,2739.0,2738.9,0.00548095]
[1739553706552,6.77495255,2739.0,2738.9,0.00548095]
[1739553707556,3.93788,2739.0,2738.9,0.00548095]
[1739553707861,6.77495255,2739.0,2738.9,0.00548095]
[1739553708751,3.93788,2739.0,2738.9,0.00548095]
[1739553709364,6.77495255,2739.0,2738.9,0.00548095]
[1739553710358,6.77495255,2739.0,2738.9,0.56382926]
[1739553711066,0.73008,2739.0,2738.9,1.29393926]
[1739553711360,1.1382,2739.2,2739.1,0.73006]
[1739553711665,1.1382,2739.2,2739.1,1.28840831]
[1739553711860,1.86823,2739.2,2739.1,1.28840831]
[1739553712062,1.1382,2739.2,2739.1,1.28837753]
[1739553712464,41.54033404,2739.4,2739.1,0.55831753]
[1739553712764,3.9378,2739.3,2739.2,0.55831753]
[1739553713963,3.2078,2739.3,2739.2,0.5589918]
[1739553714161,3.9378,2739.3,2739.2,0.5589918]
[1739553716964,5.0969,2739.3,2739.2,0.5589918]
[1739553717366,13.93397255,2739.3,2739.2,0.5589918]
[1739553717567,0.73008,2739.0,2738.9,0.00548095]
[1739553717870,3.93788,2739.0,2738.9,0.00548095]
[1739553718365,44.73788,2739.0,2738.9,0.87231012]
[1739553718969,41.53008,2739.0,2738.9,1.60242012]
[1739553719164,40.8,2739.0,2738.9,1.60242012]
[1739553719866,3.2078,2739.3,2738.9,0.87231012]
[1739553720068,0.01034404,2739.4,2739.3,0.73]
[1739553720264,0.01034404,2739.4,2739.3,1.11978177]
[1739553720569,40.81034404,2739.4,2739.3,1.59682917]
[1739553720771,40.81034404,2739.4,2739.3,0.86682917]
[1739553720963,40.81034404,2739.4,2739.3,1.59682917]
[1739553721362,40.81034404,2739.4,2739.3,1.59712568]
[1739553722371,40.81034404,2739.4,2739.3,0.86712568]
[1739553722572,40.81034404,2739.4,2739.3,1.59712568]
[1739553723472,3.2078,2739.9,2739.6,0.7299]
[1739553723675,0.7298,2740.1,2739.7,0.39007828]
[1739553723976,6.04487255,2740.2,2739.8,0.39007828]
[1739553724273,0.7298,2740.1,2739.7,0.4770474]
[1739553724471,40.8,2740.0,2739.9,0.4770474]
[1739553725171,41.52982,2740.0,2739.9,0.4770474]
[1739553725370,40.8,2740.0,2739.9,0.4770474]
[1739553727069,40.8,2740.0,2739.9,1.2068874]
[1739553727770,40.8,2740.0,2739.9,2.6837474]
[1739553727964,40.8,2740.0,2739.9,3.4135874]
[1739553728878,40.8,2740.0,2739.9,2.6837474]
[1739553729065,41.52982,2740.0,2739.9,0.4770474]
[1739553729572,41.52982,2740.0,2739.9,1.03371484]
[1739553730875,40.8,2740.0,2739.9,1.03371484]
[1739553731075,40.8,2740.0,2739.9,1.76355484]
[1739553731868,40.8,2740.0,2739.9,1.03371484]
[1739553731869,41.52982,2740.0,2739.9,1.03371484]
[1739553732469,41.52982,2740.0,2739.9,1.03368824]
[1739553732866,40.8,2740.0,2739.9,1.76338085]
[1739553733077,40.8,2740.0,2739.9,1.2068874]
[1739553733277,41.52982,2740.0,2739.9,1.2068874]
[1739553733681,40.8,2740.0,2739.9,1.76332218]
[1739553733978,40.8,2740.0,2739.9,1.2068874]
[1739553735980,40.8,2740.0,2739.9,1.76342876]
[1739553736176,41.52982,2740.0,2739.9,1.76342876]
[1739553736381,40.8,2740.0,2739.9,1.76342876]
[1739553736876,40.8,2740.0,2739.9,1.76360408]
[1739553737475,41.52982,2740.0,2739.9,1.03376408]
[1739553737675,40.8,2740.0,2739.9,1.76360408]
[1739553738777,40.8,2740.0,2739.9,1.76445371]
[1739553739580,40.8,2740.0,2739.9,1.03461371]
[1739553740681,41.52982,2740.0,2739.9,1.03461371]
[1739553740887,40.8,2740.0,2739.9,1.03461371]
[1739553742083,40.8,2740.0,2739.9,1.76445371]
[1739553742380,40.8,2740.0,2739.9,1.03461371]
[1739553742784,41.52982,2740.0,2739.9,1.03461371]
[1739553743086,40.8,2740.0,2739.9,1.03461371]
[1739553743399,40.8,2740.0,2739.9,1.76445371]
[1739553743688,3.2078,2740.5,2739.9,4.24241371]
[1739553743883,3.2078,2740.5,2740.2,0.72974]
[1739553744183,0.72971,2740.4,2740.3,0.55756631]
[1739553744384,0.72971,2740.4,2740.3,1.03461371]
[1739553744778,3.93749,2740.5,2740.3,1.2067774]
[1739553744993,3.93749,2740.5,2740.4,0.55773582]
[1739553745380,3.2078,2740.5,2740.4,1.03478322]
[1739553745579,3.93748,2740.5,2740.4,1.03478322]
[1739553746085,3.2078,2740.5,2740.4,1.76449322]
[1739553746386,44.0078,2740.5,2740.4,1.76449322]
[1739553746587,44.73748,2740.5,2740.4,1.03478322]
[1739553746778,44.0078,2740.5,2740.4,1.03478322]
[1739553747087,44.0078,2740.5,2740.4,1.76449322]
[1739553747491,44.73748,2740.5,2740.4,1.03478322]
[1739553748789,44.73748,2740.5,2740.4,0.4770474]
[1739553749085,44.73748,2740.5,2740.4,1.03535237]
[1739553750094,44.73748,2740.5,2740.4,1.76506237]
[1739553750388,44.0078,2740.5,2740.4,1.03535237]
[1739553750590,44.73748,2740.5,2740.4,1.03535237]
[1739553751482,44.0078,2740.5,2740.4,1.03535237]
[1739553751686,44.0078,2740.5,2740.4,1.76506237]
[1739553751886,44.73748,2740.5,2740.4,1.76506237]
[1739553752386,44.0078,2740.5,2740.4,1.76506237]
[1739553752795,44.0078,2740.5,2740.4,1.2067574]
[1739553752995,44.0078,2740.5,2740.4,1.76558148]
[1739553753893,44.73748,2740.5,2740.4,1.76558148]
[1739553754089,44.73748,2740.5,2740.4,1.03587148]
[1739553754591,44.0078,2740.5,2740.4,1.76558148]
[1739553754789,0.72966,2740.6,2740.4,1.76558148]
[1739553754991,0.72966,2740.6,2740.5,0.55890564]
[1739553755187,3.93746,2740.6,2740.5,1.03595304]
[1739553755384,44.73746,2740.6,2740.5,1.03595304]
[1739553755990,44.0078,2740.6,2740.5,1.03595304]
[1739553756195,44.0078,2740.6,2740.5,1.76563304]
[1739553756396,44.73746,2740.6,2740.5,1.76563304]
[1739553756592,44.73746,2740.6,2740.5,1.03595304]
[1739553756983,44.73746,2740.6,2740.5,1.76563304]
[1739553757188,44.73746,2740.6,2740.5,1.03595304]
[1739553757390,44.73746,2740.6,2740.5,1.76563304]
[1739553758093,41.52966,2740.6,2740.5,1.03595304]
[1739553758694,40.8,2740.6,2740.5,1.03595304]
[1739553759002,41.52966,2740.6,2740.5,1.03548131]
[1739553759500,41.52966,2740.6,2740.5,1.76516131]
[1739553759998,40.8,2740.6,2740.5,1.76516131]
[1739553760788,40.8,2740.6,2740.5,1.2067274]
[1739553760993,40.8,2740.6,2740.5,1.76530337]
[1739553761194,40.8,2740.6,2740.5,1.03562337]
[1739553761498,44.73746,2740.6,2740.5,1.03562337]
[1739553762799,44.73746,2740.6,2740.5,0.4770474]
[1739553763001,44.73746,2740.6,2740.5,1.03589596]
[1739553763399,44.73746,2740.6,2740.2,0.00548095]
[1739553763400,0.72974,2740.3,2740.2,0.00548095]
[1739553763699,3.93754,2740.3,2740.2,0.5644888]
[1739553763902,3.2078,2740.3,2740.2,0.5644888]
[1739553764201,3.93754,2740.3,2740.2,0.5644888]
[1739553764501,3.2078,2740.3,2740.2,1.2942488]
[1739553766102,44.0078,2740.6,2740.2,0.5644888]
[1739553766302,40.8,2740.6,2740.5,0.72968]
[1739553767501,41.52967,2740.6,2740.4,1.1901]
[1739553767702,40.8,2740.6,2740.4,1.91981]
[1739553768003,40.8,2740.6,2740.4,1.1901]
[1739553768500,40.8,2740.6,2740.5,0.72968]
[1739553771904,40.8,2740.6,2740.4,1.9198]
[1739553772103,40.8,2740.6,2740.4,3.6468]
[1739553772305,40.8,2740.6,2740.5,0.72968]
[1739553772506,0.72956,2741.0,2740.4,6.1249]
[1739553772812,0.7296,2740.9,2740.4,6.1249]
[1739553773008,41.5296,2740.8,2740.5,0.72967]
[1739553773202,40.8,2740.8,2740.4,6.1249]
[1739553773512,40.8,2740.8,2740.4,8.96197255]
[1739553773704,40.8,2740.8,2740.4,4.3979]
[1739553773902,0.72966,2740.6,2740.4,4.3979]
[1739553774108,0.72966,2740.6,2740.4,1.1901]
[1739553774606,0.72965,2740.7,2740.4,1.1901]
[1739553775004,0.72965,2740.7,2740.4,1.91981]
[1739553775408,0.72965,2740.7,2740.5,0.55480627]
[1739553775614,0.72965,2740.7,2740.6,0.55480627]
[1739553775810,0.72965,2740.7,2740.6,1.03062206]
[1739553778017,0.72965,2740.7,2740.6,1.76028206]
[1739553779014,0.72965,2740.7,2740.6,1.76059633]
[1739553779214,44.0078,2740.8,2740.6,1.03093633]
[1739553779415,44.73742,2740.8,2740.7,1.76056633]
[1739553780521,44.0078,2740.8,2740.7,1.76056633]
[1739553780717,44.0078,2740.8,2740.7,1.20544579]
[1739553780920,44.7374,2740.8,2740.7,1.76042327]
[1739553781122,53.57447255,2740.8,2740.7,1.03079327]
[1739553781322,0.72974,2740.3,2740.2,0.00548095]
[1739553781520,3.93754,2740.3,2740.2,0.00548095]
[1739553782128,44.73754,2740.3,2740.2,0.73524095]
[1739553782327,44.0078,2740.3,2740.2,0.73524095]
[1739553782521,40.8,2740.3,2740.2,0.73524095]
[1739553782726,44.73754,2740.3,2740.2,0.73524095]
[1739553782925,44.0078,2740.3,2740.2,0.73524095]
[1739553783127,44.73754,2740.3,2740.2,0.73524095]
[1739553783323,44.73754,2740.3,2740.2,0.00548095]
[1739553783529,44.73754,2740.3,2740.2,0.73524095]
[1739553783828,44.73754,2740.3,2740.2,0.00548095]
[1739553784031,44.73754,2740.3,2740.2,0.73524095]
[1739553784622,44.73754,2740.3,2740.2,0.00548095]
[1739553785226,44.73754,2740.3,2740.2,0.73524095]
[1739553785426,44.73754,2740.3,2740.2,0.00548095]
[1739553785831,44.73754,2740.3,2740.2,0.73524095]
[1739553786032,44.73754,2740.3,2740.2,0.00548095]
[1739553787832,0.7299,2739.7,2739.6,0.7299]
[1739553788032,1.82451,2740.1,2739.6,0.7299]
[1739553788033,2.83707255,2739.9,2739.6,0.7299]
[1739553788329,0.72988,2739.8,2739.7,0.72989]
[1739553788833,5.4561,2740.0,2739.4,5.03273]
[1739553789038,40.8,2739.8,2739.7,0.7299]
[1739553789634,0.00548095,2740.0,2739.9,0.72984]
[1739553790339,0.00548095,2740.0,2739.9,1.91804]
[1739553790728,3.2078,2740.7,2740.1,0.72979]
[1739553790931,1.726,2741.2,2740.5,0.72966]
[1739553791136,0.72958,2740.9,2740.6,1.91786]
[1739553791341,3.2078,2741.0,2740.6,1.1882]
[1739553791838,41.52961,2740.8,2740.6,1.1882]
[1739553792140,40.8,2740.8,2740.6,1.1882]
[1739553792536,41.52961,2740.8,2740.6,1.1882]
[1739553793235,41.52961,2740.8,2740.7,0.54784762]
[1739553793836,40.8,2740.8,2740.7,0.54784762]
[1739553794031,41.5296,2740.8,2740.7,0.54784762]
[1739553794642,40.8,2740.8,2740.7,0.54784762]
[1739553795749,41.5296,2740.8,2740.7,0.54784762]
[1739553796134,41.5296,2740.8,2740.7,0.54790453]
[1739553796348,0.72967,2740.6,2740.4,0.7297]
[1739553796647,3.2078,2740.6,2740.5,0.54793066]
[1739553796841,3.2078,2740.6,2740.5,1.27761066]
[1739553797139,3.2078,2740.6,2740.5,0.54793066]
[1739553797345,3.2078,2740.6,2740.5,1.27761066]
[1739553798449,3.2078,2740.6,2740.5,1.27736403]
[1739553799343,3.2078,2740.6,2740.5,0.54768403]
[1739553799951,3.93746,2740.6,2740.5,0.54768403]
[1739553800150,3.2078,2740.6,2740.5,0.54768403]
[1739553800351,3.2078,2740.6,2740.5,1.27745756]
[1739553801845,40.8,2740.8,2740.7,0.72963]
[1739553802046,40.8,2740.8,2740.7,4.11448011]
[1739553802242,40.8,2740.8,2740.7,4.11425592]
[1739553802442,40.8,2740.8,2740.7,5.19655592]
[1739553803355,3.2078,2741.5,2741.3,0.72946]
[1739553803545,3.93722,2741.5,2741.4,0.54755337]
[1739553804151,44.0078,2741.5,2741.2,0.00548095]
[1739553804352,4.71731255,2741.4,2741.3,0.547467]
[1739553804554,4.72381255,2741.4,2741.3,0.547467]
[1739553804742,9.99437255,2741.4,2740.4,1.724]
[1739553804945,3.2078,2740.9,2740.8,0.7296]
[1739553805346,40.8,2740.9,2740.8,0.7296]
[1739553808249,40.8,2740.9,2740.7,0.72962]
[1739553808845,0.72961,2740.8,2740.6,0.00548095]
[1739553809050,0.72961,2740.8,2740.6,1.10208095]
[1739553809256,44.0078,2740.9,2740.6,1.10208095]
[1739553809559,44.0078,2740.9,2740.6,1.83173095]
[1739553809758,0.7296,2740.8,2740.6,1.83173095]
[1739553809960,44.0078,2740.9,2740.6,1.83173095]
[1739553810149,44.7374,2740.9,2740.6,1.83173095]
[1739553810354,0.7296,2740.8,2740.6,1.83173095]
[1739553810555,44.0078,2740.9,2740.6,1.83173095]
[1739553810756,0.72961,2740.8,2740.6,1.83173095]
[1739553811162,44.73739,2740.9,2740.6,1.10208095]
[1739553811355,44.73739,2740.9,2740.7,0.72963]
[1739553811557,44.73739,2740.9,2740.6,1.10208095]
[1739553811754,0.7296,2740.8,2740.6,1.83172095]
[1739553811955,44.73739,2740.9,2740.6,1.83171095]
[1739553812259,40.8,2740.9,2740.8,0.7296]
[1739553812758,40.8,2740.9,2740.7,0.72963]
[1739553812963,0.72963,2740.7,2740.6,0.00548095]
[1739553813162,0.72961,2740.8,2740.6,0.00548095]
[1739553813464,44.73739,2740.9,2740.6,0.00548095]
[1739553813660,44.0078,2740.9,2740.6,0.00548095]
[1739553813862,44.7374,2740.9,2740.7,0.72963]
[1739553814358,0.72961,2740.8,2740.6,0.73512095]
[1739553814559,40.8,2740.9,2740.8,0.7296]
[1739553815460,0.00548095,2741.1,2740.8,3.2078]
[1739553815862,0.00548095,2741.1,2740.7,5.11297255]
[1739553816063,40.8,2741.0,2740.9,0.72957]
[1739553816364,40.8,2741.0,2740.7,1.1154]
[1739553816365,44.0078,2741.0,2740.7,1.1154]
[1739553816561,44.73737,2741.0,2740.7,1.1154]
[1739553816762,44.73737,2741.0,2740.8,0.54744701]
[1739553816966,44.73737,2741.0,2740.9,0.54744701]
[1739553817166,44.0078,2741.0,2740.9,0.54744701]
[1739553817369,44.0078,2741.0,2740.9,1.27702701]
[1739553817863,40.8,2741.0,2740.9,1.27702701]
[1739553818671,40.8,2741.0,2740.9,0.54744701]
[1739553820369,44.73735,2741.0,2740.9,0.54744701]
[1739553821470,44.73735,2741.0,2740.9,0.5485708]
[1739553821770,44.73735,2741.0,2740.9,1.2781508]
[1739553821973,44.0078,2741.0,2740.9,1.2781508]
[1739553822372,44.73735,2741.0,2740.9,0.5485708]
[1739553823273,44.73735,2741.0,2740.9,0.5486204]
[1739553823465,44.73735,2741.0,2740.9,1.2782004]
[1739553824176,44.0078,2741.0,2740.9,1.2782004]
[1739553824377,44.73735,2741.0,2740.9,0.5486204]
[1739553825679,44.73735,2741.0,2740.9,1.2782004]
[1739553825980,40.8,2741.0,2740.9,0.5486204]
[1739553826174,41.52955,2741.0,2740.9,1.2782004]
[1739553826371,41.52955,2741.0,2740.9,0.5486204]
[1739553827275,41.52955,2741.0,2740.9,0.54897136]
[1739553829277,40.8,2741.0,2740.9,0.54897136]
[1739553829478,40.8,2741.0,2740.9,1.27855136]
[1739553830679,40.8,2741.0,2740.9,0.54897136]
[1739553830879,41.52955,2741.0,2740.9,0.54897136]
[1739553831075,40.8,2741.0,2740.9,0.54897136]
[1739553831276,41.52955,2741.0,2740.9,0.54897136]
[1739553831880,0.00548095,2741.1,2740.9,2.27197136]
[1739553832083,3.2078,2741.9,2741.2,1.82371]
[1739553832384,3.2078,2742.3,2741.8,2.83707255]
[1739553832686,0.72923,2742.2,2741.9,0.54897136]
[1739553832887,40.8,2742.1,2742.0,0.54795499]
[1739553833583,41.52926,2742.1,2742.0,0.54795499]
[1739553833777,40.8,2742.1,2742.0,0.54795499]
[1739553833981,41.52926,2742.1,2742.0,0.54795499]
[1739553835383,47.52926,2742.1,2742.0,0.54795499]
[1739553835586,46.8,2742.1,2740.9,0.72956]
[1739553835883,0.72948,2741.3,2741.0,0.72953]
[1739553836186,0.72948,2741.3,2740.8,1.2603]
[1739553836187,3.93726,2741.4,2741.1,0.7295]
[1739553836384,3.2078,2741.4,2740.8,1.2603]
[1739553836684,3.2078,2741.3,2741.1,0.7295]
[1739553836883,3.2078,2741.3,2740.9,2.83707255]
[1739553837190,3.2078,2741.6,2741.5,0.72942]
[1739553837389,3.2078,2741.6,2741.3,1.1713]
[1739553837577,3.2078,2741.6,2741.2,0.72949]
[1739553837780,3.2078,2741.6,2741.2,4.00837255]
[1739553837984,3.2078,2741.6,2741.5,0.72942]
[1739553838183,3.2078,2741.6,2741.2,4.00837255]
[1739553838391,3.2078,2741.6,2741.3,0.72946]
[1739553838582,40.8,2741.5,2741.3,0.72946]
[1739553839087,40.8,2741.5,2741.2,4.00837255]
[1739553839285,40.8,2741.5,2741.4,0.72944]
[1739553840888,40.8,2741.5,2741.2,7.21617255]
[1739553841088,40.8,2741.5,2741.2,8.93817255]
[1739553841290,40.8,2741.5,2741.3,0.72947]
[1739553841587,40.8,2741.5,2741.4,0.72944]
[1739553841985,40.8,2741.5,2741.3,0.72946]
[1739553842583,40.8,2741.5,2741.4,0.72944]
[1739553842786,40.8,2741.5,2741.3,0.72946]
[1739553843289,40.8,2741.5,2741.2,9.66766255]
[1739553843889,40.8,2741.5,2741.2,8.93817255]
[1739553844191,40.8,2741.5,2741.2,9.66765255]
[1739553844389,40.8,2741.5,2741.2,8.93817255]
[1739553844595,40.8,2741.5,2741.3,0.72945]
[1739553844984,40.8,2741.5,2741.3,0.72947]
[1739553845588,40.8,2741.5,2741.2,9.66765255]
[1739553845791,0.72945,2741.4,2741.2,2.8933]
[1739553845989,0.72947,2741.3,2741.2,1.1713]
[1739553846295,0.72952,2741.1,2741.0,1.2603]
[1739553846886,0.72957,2741.0,2740.7,1.2324]
[1739553847189,0.72956,2741.0,2740.7,3.19722]
[1739553848088,4.3914,2741.3,2740.8,0.72958]
[1739553848286,0.72954,2741.1,2740.8,0.72959]
[1739553848483,0.72954,2741.1,2740.7,2.4676]
[1739553848692,0.72956,2741.0,2740.7,3.19722]
[1739553848893,3.2078,2741.0,2740.7,2.4676]
[1739553849089,0.7296,2740.8,2740.7,2.4676]
[1739553849593,0.7296,2740.8,2740.7,1.2324]
[1739553849784,0.72963,2740.7,2740.6,0.00548095]
[1739553849989,3.2078,2740.7,2740.6,0.73514095]
[1739553850194,3.2078,2740.7,2740.6,0.00548095]
[1739553850387,3.93743,2740.7,2740.6,0.00548095]
[1739553850993,44.0078,2740.7,2740.6,0.00548095]
[1739553851189,44.0078,2740.7,2740.6,0.73514095]
[1739553851789,40.8,2740.7,2740.6,0.73514095]
[1739553852997,40.8,2740.7,2740.6,0.00548095]
[1739553853198,44.73743,2740.7,2740.6,0.00548095]
[1739553854099,44.0078,2740.7,2740.6,0.00548095]
[1739553854401,44.73743,2740.7,2740.6,0.00548095]
[1739553855194,40.8,2740.7,2740.6,0.73514095]
[1739553855703,41.52963,2740.7,2740.6,0.00548095]
[1739553856197,44.0078,2740.7,2740.6,0.00548095]
[1739553856504,44.0078,2740.7,2740.6,0.73514095]
[1739553856698,44.73743,2740.7,2740.6,0.00548095]
[1739553857800,44.0078,2740.7,2740.6,0.00548095]
[1739553857998,44.0078,2740.7,2740.6,0.73514095]
[1739553858700,3.2078,2741.0,2740.9,0.72958]
[1739553859104,44.0078,2741.0,2740.9,0.72958]
[1739553859814,44.0078,2741.0,2740.8,1.182]
[1739553860408,44.0078,2741.0,2740.9,0.72958]
[1739553861313,44.73736,2741.0,2740.8,1.9116]
[1739553861915,44.73736,2741.0,2740.8,1.182]
[1739553862104,44.0078,2741.0,2740.6,0.00548095]
[1739553862304,0.72962,2740.8,2740.6,0.00548095]
[1739553863109,44.0078,2741.0,2740.6,0.00548095]
[1739553864209,40.8,2741.0,2740.9,3.56665255]
[1739553864414,0.72943,2741.5,2741.2,0.72948]
[1739553864616,0.72943,2741.5,2740.9,4.66097255]
[1739553864617,3.2078,2741.5,2741.3,2.4141]
[1739553864916,0.72952,2741.1,2740.8,3.93739]
[1739553865114,0.72955,2741.0,2740.9,1.2148]
[1739553865712,3.2078,2741.2,2740.9,1.2148]
[1739553865919,3.9373,2741.2,2741.0,0.72953]
[1739553866113,3.2078,2741.2,2741.1,0.72952]
[1739553866314,3.2078,2741.2,2740.9,1.2148]
[1739553866511,3.2078,2741.2,2741.0,0.72954]
[1739553866821,3.9373,2741.2,2741.0,0.72954]
[1739553867122,3.2078,2741.2,2741.1,0.72952]
[1739553868419,3.9373,2741.2,2740.9,1.94436]
[1739553868619,3.2078,2741.2,2741.0,0.72955]
[1739553870019,3.2078,2741.2,2740.9,1.2148]
[1739553870221,3.2078,2741.2,2741.0,0.72954]
[1739553871221,3.2078,2741.2,2741.1,0.72952]
[1739553871624,40.8,2741.4,2741.3,0.72947]
[1739553871812,40.8,2741.4,2741.2,0.72948]
[1739553872018,40.8,2741.4,2741.1,2.83707255]
[1739553872323,40.8,2741.4,2741.3,0.72947]
[1739553873817,40.8,2741.4,2741.3,1.86977]
[1739553879321,0.72933,2741.9,2741.6,0.72937]
[1739553879522,3.2078,2742.1,2741.6,3.56644255]
[1739553879928,40.8,2741.8,2741.6,3.56644255]
[1739553880225,41.52934,2741.8,2741.6,3.56644255]
[1739553880426,40.8,2741.8,2741.6,2.83707255]
[1739553880627,44.73714,2741.8,2741.6,3.56645255]
[1739553880925,44.0078,2741.8,2741.6,3.56646255]
[1739553881126,44.0078,2741.8,2741.6,2.83707255]
[1739553881429,40.8,2741.8,2741.7,2.44936]
[1739553881630,40.8,2741.8,2741.7,3.68196]
[1739553885729,40.8,2741.8,2741.6,4.55707255]
[1739553885930,41.52935,2741.8,2741.6,4.55707255]
[1739553886132,44.0078,2741.8,2741.3,3.97737255]
[1739553886322,3.2078,2741.5,2741.3,4.70682255]
[1739553886526,0.7294,2741.6,2741.3,4.70682255]
[1739553886930,0.72939,2741.7,2741.3,4.70682255]
[1739553887222,44.0078,2741.8,2741.3,3.97737255]
[1739553887622,44.0078,2741.8,2741.6,2.83707255]
[1739553887823,3.2078,2741.8,2741.7,1.92866]
[1739553888027,3.93701,2742.3,2742.0,0.72927]
[1739553888231,40.8,2742.2,2742.0,3.56634255]
[1739553888430,40.8,2742.2,2742.1,0.72926]
[1739553890533,40.8,2742.2,2742.1,3.93706]
[1739553894233,40.8,2742.2,2742.1,5.65606]
[1739553895333,3.2078,2742.9,2742.1,4.9268]
[1739553895635,3.93685,2742.9,2742.6,0.72911]
[1739553895839,40.8,2742.7,2742.6,0.72911]
[1739553896330,40.8,2742.7,2742.6,2.44811]
[1739553896633,40.8,2742.7,2742.6,3.60511]
[1739553899029,3.2078,2743.2,2742.6,2.876]
[1739553899229,3.2078,2743.2,2743.0,2.83707255]
[1739553899431,5.5662,2743.6,2743.0,2.83707255]
[1739553899632,0.72889,2743.5,2743.3,2.83707255]
[1739553900027,40.8,2743.4,2743.3,2.83707255]
[1739553900342,40.8,2743.4,2743.3,3.56601255]
[1739553901037,40.8,2743.4,2743.3,6.77381255]
[1739553901332,3.93654,2744.1,2743.3,7.76387255]
[1739553901532,3.2078,2744.1,2743.8,2.83707255]
[1739553901731,41.52876,2744.0,2743.8,2.83707255]
[1739553901933,40.8,2744.0,2743.9,0.72878]
[1739553902144,40.8,2744.0,2743.8,4.55607255]
[1739553902334,40.8,2744.0,2743.9,1.89648]
[1739553902532,40.8,2744.0,2743.9,1.1677]
[1739553902736,40.8,2744.0,2743.9,1.89648]
[1739553903237,0.62006,2744.8,2743.9,7.1677]
[1739553903535,0.62006,2744.8,2744.6,2.83707255]
[1739553903738,40.8,2744.7,2744.6,5.28465255]
[1739553904136,40.8,2744.7,2744.6,8.49245255]
[1739553904939,0.62006,2744.8,2744.6,8.49245255]
[1739553904940,0.62006,2744.8,2744.6,13.76387255]
[1739553905133,3.2078,2745.9,2745.2,2.83707255]
[1739553905327,3.2078,2745.9,2745.7,2.83707255]
[1739553905533,3.2078,2746.3,2745.8,1.718]
[1739553905740,3.2078,2746.3,2746.2,2.83707255]
[1739553905935,3.2078,2746.3,2746.2,5.28324255]
[1739553906338,44.0078,2746.3,2746.2,2.83707255]
[1739553906634,44.0078,2746.3,2745.9,2.83707255]
[1739553906839,40.8,2746.3,2746.2,2.83707255]
[1739553907232,40.8,2746.3,2745.9,2.83707255]
[1739553907432,3.2078,2746.0,2745.6,2.83707255]
[1739553907629,0.72833,2745.6,2745.5,0.00547036]
[1739553908028,2.08043,2745.6,2745.5,0.00547036]
[1739553908330,0.72849,2745.0,2744.7,4.55507255]
[1739553908530,3.2078,2745.1,2744.7,4.55507255]
[1739553908839,3.2078,2744.8,2744.1,2.83707255]
[1739553909038,3.2078,2744.2,2743.8,4.79396255]